[Event "Early-Titled-Tuesday-Blitz-February-13-2024"]
[Site "Chess.com"]
[Date "2024.02.13"]
[Round "2"]
[White "UnTucopalaTimba"]
[Black "DenLaz"]
[Result "0-1"]
[WhiteElo "1971"]
[BlackElo "3039"]
[TimeControl "180+1"]
[EndTime "8:15:55 PST"]
[Termination "DenLaz won by resignation"]

1. e4 {[%clk 0:03:00.5]} 1... c5 {[%clk 0:03:00.5]} 2. Nf3 {[%clk 0:02:56.6]}
2... e6 {[%clk 0:03:01]} 3. d4 {[%clk 0:02:56.2]} 3... cxd4 {[%clk 0:03:01.9]}
4. Nxd4 {[%clk 0:02:55.4]} 4... Nc6 {[%clk 0:03:02.5]} 5. Be3 {[%clk 0:02:48.6]}
5... Nf6 {[%clk 0:03:02]} 6. f3 {[%clk 0:02:42]} 6... d5 {[%clk 0:03:00.1]} 7.
Nxc6 {[%clk 0:02:38]} 7... bxc6 {[%clk 0:03:00.2]} 8. Nc3 {[%clk 0:02:36.7]}
8... Rb8 {[%clk 0:02:57.9]} 9. b3 {[%clk 0:02:33.2]} 9... Bb4 {[%clk 0:02:57]}
10. Bd2 {[%clk 0:02:30.7]} 10... Qa5 {[%clk 0:02:54.7]} 11. Na4 {[%clk
0:02:22.5]} 11... dxe4 {[%clk 0:02:54.7]} 12. c3 {[%clk 0:02:12.7]} 12... Bd6
{[%clk 0:02:51.7]} 13. fxe4 {[%clk 0:02:07.7]} 13... Nxe4 {[%clk 0:02:52.6]} 14.
Qe2 {[%clk 0:02:02.7]} 14... Nxd2 {[%clk 0:02:45]} 15. Qxd2 {[%clk 0:02:02.5]}
15... Be7 {[%clk 0:02:44.7]} 16. Be2 {[%clk 0:01:58.7]} 16... O-O {[%clk
0:02:44.9]} 17. O-O {[%clk 0:01:58.3]} 17... Bb7 {[%clk 0:02:42.5]} 18. Bf3
{[%clk 0:01:52.9]} 18... Rbd8 {[%clk 0:02:41.6]} 19. Qf4 {[%clk 0:01:49.1]}
19... Ba6 {[%clk 0:02:38.4]} 20. Rfd1 {[%clk 0:01:46.9]} 20... Bb5 {[%clk
0:02:36]} 21. Qe3 {[%clk 0:01:04.1]} 21... Bxa4 {[%clk 0:02:34]} 22. bxa4 {[%clk
0:01:04.1]} 22... Bc5 {[%clk 0:02:33.9]} 0-1

[Event "Early-Titled-Tuesday-Blitz-February-13-2024"]
[Site "Chess.com"]
[Date "2024.02.13"]
[Round "2"]
[White "Elsa167"]
[Black "kushbhagat2009"]
[Result "1-0"]
[WhiteElo "2919"]
[BlackElo "2625"]
[TimeControl "180+1"]
[EndTime "8:15:57 PST"]
[Termination "Elsa167 won by resignation"]

1. e4 {[%clk 0:03:00.9]} 1... c5 {[%clk 0:03:00.1]} 2. b4 {[%clk 0:02:59.2]}
2... cxb4 {[%clk 0:02:58.3]} 3. d4 {[%clk 0:02:52.7]} 3... d5 {[%clk 0:02:40.5]}
4. exd5 {[%clk 0:02:52.4]} 4... Nf6 {[%clk 0:02:39.1]} 5. c4 {[%clk 0:02:37.7]}
5... bxc3 {[%clk 0:02:38.2]} 6. Nxc3 {[%clk 0:02:38.2]} 6... Nxd5 {[%clk
0:02:32.8]} 7. Nxd5 {[%clk 0:02:28.3]} 7... Qxd5 {[%clk 0:02:33.7]} 8. Nf3
{[%clk 0:02:22.5]} 8... Nc6 {[%clk 0:02:33.2]} 9. Be2 {[%clk 0:02:18.7]} 9... g6
{[%clk 0:02:32]} 10. Rb1 {[%clk 0:02:13.9]} 10... Bg7 {[%clk 0:02:28.5]} 11. Rb5
{[%clk 0:02:13.7]} 11... Qd7 {[%clk 0:02:23.8]} 12. d5 {[%clk 0:02:13.2]} 12...
Ne5 {[%clk 0:02:14.4]} 13. Nxe5 {[%clk 0:02:13.1]} 13... Bxe5 {[%clk 0:02:15.3]}
14. Bh6 {[%clk 0:02:13.4]} 14... Bc3+ {[%clk 0:02:13.7]} 15. Kf1 {[%clk
0:02:13.2]} 15... a6 {[%clk 0:02:11.5]} 16. Rc5 {[%clk 0:01:55.6]} 16... Bb4
{[%clk 0:02:06.4]} 17. Qd4 {[%clk 0:01:52.5]} 1-0

[Event "Early-Titled-Tuesday-Blitz-February-13-2024"]
[Site "Chess.com"]
[Date "2024.02.13"]
[Round "2"]
[White "ChessQueen"]
[Black "Rud_Makarian"]
[Result "1-0"]
[WhiteElo "2689"]
[BlackElo "3026"]
[TimeControl "180+1"]
[EndTime "8:16:19 PST"]
[Termination "ChessQueen won by resignation"]

1. e4 {[%clk 0:03:00.9]} 1... c5 {[%clk 0:02:58.7]} 2. c3 {[%clk 0:03:00.9]}
2... d5 {[%clk 0:02:57.9]} 3. exd5 {[%clk 0:03:01]} 3... Nf6 {[%clk 0:02:58.4]}
4. Bb5+ {[%clk 0:02:59.7]} 4... Nbd7 {[%clk 0:02:57.9]} 5. c4 {[%clk 0:02:58.8]}
5... a6 {[%clk 0:02:55.9]} 6. Bxd7+ {[%clk 0:02:57.9]} 6... Qxd7 {[%clk
0:02:53.8]} 7. Nf3 {[%clk 0:02:55.4]} 7... g6 {[%clk 0:02:50.8]} 8. O-O {[%clk
0:02:51.9]} 8... Bg7 {[%clk 0:02:46.3]} 9. Nc3 {[%clk 0:02:45.4]} 9... b5 {[%clk
0:02:38]} 10. d3 {[%clk 0:02:39.8]} 10... O-O {[%clk 0:02:33.7]} 11. Qe2 {[%clk
0:02:33.4]} 11... Bb7 {[%clk 0:02:32]} 12. Ne4 {[%clk 0:02:30.2]} 12... Rac8
{[%clk 0:02:22.3]} 13. h3 {[%clk 0:02:22.7]} 13... Rfe8 {[%clk 0:02:15.9]} 14.
Ne5 {[%clk 0:02:16.7]} 14... Qd8 {[%clk 0:02:11.9]} 15. Ng5 {[%clk 0:02:13.5]}
15... Rf8 {[%clk 0:02:09.3]} 16. Bf4 {[%clk 0:02:03.9]} 16... Nd7 {[%clk
0:01:55.2]} 17. Nexf7 {[%clk 0:01:53.2]} 17... Rxf7 {[%clk 0:01:51.6]} 18. Qe6
{[%clk 0:01:52]} 18... Qb6 {[%clk 0:01:30.1]} 19. Qxf7+ {[%clk 0:01:47.4]} 19...
Kh8 {[%clk 0:01:30.1]} 20. Qxe7 {[%clk 0:01:44.6]} 1-0

[Event "Early-Titled-Tuesday-Blitz-February-13-2024"]
[Site "Chess.com"]
[Date "2024.02.13"]
[Round "2"]
[White "FREDERICKtheMATE"]
[Black "agvania123"]
[Result "1-0"]
[WhiteElo "2647"]
[BlackElo "2355"]
[TimeControl "180+1"]
[EndTime "8:16:21 PST"]
[Termination "FREDERICKtheMATE won by resignation"]

1. Nf3 {[%clk 0:03:00.9]} 1... Nf6 {[%clk 0:02:59]} 2. d4 {[%clk 0:03:00.9]}
2... g6 {[%clk 0:02:57.9]} 3. c4 {[%clk 0:03:01.4]} 3... Bg7 {[%clk 0:02:57.9]}
4. Nc3 {[%clk 0:03:01.4]} 4... d5 {[%clk 0:02:57.7]} 5. Qb3 {[%clk 0:03:00.6]}
5... c6 {[%clk 0:02:52.5]} 6. cxd5 {[%clk 0:03:00]} 6... cxd5 {[%clk 0:02:53.4]}
7. Bg5 {[%clk 0:02:59.6]} 7... O-O {[%clk 0:02:52]} 8. Bxf6 {[%clk 0:02:58.3]}
8... exf6 {[%clk 0:02:50]} 9. Qxd5 {[%clk 0:02:57.1]} 9... Qb6 {[%clk
0:02:45.8]} 10. Qb5 {[%clk 0:02:53]} 10... Qxb5 {[%clk 0:02:40.9]} 11. Nxb5
{[%clk 0:02:53.4]} 11... Nc6 {[%clk 0:02:40.7]} 12. e3 {[%clk 0:02:50.1]} 12...
a6 {[%clk 0:02:40.5]} 13. Nd6 {[%clk 0:02:43.5]} 13... Rd8 {[%clk 0:02:38]} 14.
Nxc8 {[%clk 0:02:43.5]} 14... Raxc8 {[%clk 0:02:38.9]} 15. Bd3 {[%clk
0:02:42.3]} 15... Nb4 {[%clk 0:02:38.7]} 16. Kd2 {[%clk 0:02:42.4]} 16... Nxd3
{[%clk 0:02:36.5]} 17. Kxd3 {[%clk 0:02:42]} 17... b5 {[%clk 0:02:36.9]} 18.
Rhc1 {[%clk 0:02:39.2]} 18... f5 {[%clk 0:02:33]} 19. g3 {[%clk 0:02:38.4]}
19... Kf8 {[%clk 0:02:31.1]} 20. h4 {[%clk 0:02:38.1]} 20... h6 {[%clk
0:02:29.4]} 21. a4 {[%clk 0:02:19.5]} 21... b4 {[%clk 0:02:24.3]} 22. Nd2 {[%clk
0:02:16.7]} 22... Ke8 {[%clk 0:02:20.8]} 23. Nb3 {[%clk 0:02:12.5]} 23... Bf8
{[%clk 0:02:19.1]} 24. Rxc8 {[%clk 0:02:05.8]} 24... Rxc8 {[%clk 0:02:18.6]} 25.
Rc1 {[%clk 0:02:06.4]} 25... Rxc1 {[%clk 0:02:18.7]} 26. Nxc1 {[%clk 0:02:07.2]}
26... Kd7 {[%clk 0:02:19.1]} 27. Kc4 {[%clk 0:02:07.1]} 27... Kc6 {[%clk
0:02:15.6]} 28. b3 {[%clk 0:02:04.9]} 28... a5 {[%clk 0:02:12.5]} 29. Nd3 {[%clk
0:02:04.8]} 29... Bd6 {[%clk 0:02:12.8]} 30. Ne5+ {[%clk 0:01:56.2]} 30... Bxe5
{[%clk 0:02:10.7]} 31. dxe5 {[%clk 0:01:57.1]} 31... g5 {[%clk 0:02:05.3]} 32.
hxg5 {[%clk 0:01:58]} 32... hxg5 {[%clk 0:02:05]} 33. f4 {[%clk 0:01:57.8]}
33... g4 {[%clk 0:02:04.4]} 34. Kd4 {[%clk 0:01:57.7]} 34... Kd7 {[%clk
0:02:00.7]} 35. Kd5 {[%clk 0:01:54.4]} 35... Ke7 {[%clk 0:02:00.4]} 36. e4
{[%clk 0:01:54.9]} 36... fxe4 {[%clk 0:01:59.3]} 37. Kxe4 {[%clk 0:01:55.8]}
37... Ke6 {[%clk 0:01:56.7]} 38. f5+ {[%clk 0:01:54.3]} 38... Ke7 {[%clk
0:01:57.2]} 39. Kf4 {[%clk 0:01:53.6]} 1-0

[Event "Early-Titled-Tuesday-Blitz-February-13-2024"]
[Site "Chess.com"]
[Date "2024.02.13"]
[Round "2"]
[White "sotochess"]
[Black "jero888"]
[Result "1-0"]
[WhiteElo "2540"]
[BlackElo "2314"]
[TimeControl "180+1"]
[EndTime "8:16:28 PST"]
[Termination "sotochess won by resignation"]

1. e4 {[%clk 0:03:00.1]} 1... c5 {[%clk 0:02:52.6]} 2. Nf3 {[%clk 0:02:59.4]}
2... d6 {[%clk 0:02:52.4]} 3. d4 {[%clk 0:02:59.4]} 3... cxd4 {[%clk 0:02:53]}
4. Nxd4 {[%clk 0:03:00.3]} 4... Nf6 {[%clk 0:02:53.6]} 5. f3 {[%clk 0:03:00.4]}
5... Nc6 {[%clk 0:02:50.8]} 6. c4 {[%clk 0:03:00.2]} 6... Qb6 {[%clk 0:02:50.9]}
7. Nc2 {[%clk 0:02:56.5]} 7... g6 {[%clk 0:02:49.2]} 8. Nc3 {[%clk 0:02:55.3]}
8... Bg7 {[%clk 0:02:49.6]} 9. Rb1 {[%clk 0:02:54.6]} 9... O-O {[%clk 0:02:50]}
10. Be3 {[%clk 0:02:54.1]} 10... Qd8 {[%clk 0:02:45.8]} 11. Qd2 {[%clk
0:02:53.5]} 11... Be6 {[%clk 0:02:45.5]} 12. Be2 {[%clk 0:02:53.1]} 12... Rc8
{[%clk 0:02:45.6]} 13. O-O {[%clk 0:02:51.7]} 13... a6 {[%clk 0:02:44.7]} 14.
Rfc1 {[%clk 0:02:50.8]} 14... Ne5 {[%clk 0:02:44.3]} 15. b3 {[%clk 0:02:49.5]}
15... Re8 {[%clk 0:02:05.1]} 16. a4 {[%clk 0:02:44.1]} 16... a5 {[%clk 0:01:59]}
17. Bf1 {[%clk 0:02:38.7]} 17... Nc6 {[%clk 0:01:56.9]} 18. Nd5 {[%clk
0:02:33.9]} 18... Nd7 {[%clk 0:01:42.9]} 19. Kh1 {[%clk 0:02:17.1]} 19... Nc5
{[%clk 0:01:39.7]} 20. Rd1 {[%clk 0:02:11.5]} 20... f5 {[%clk 0:01:26.1]} 21.
Nf4 {[%clk 0:02:01.1]} 21... fxe4 {[%clk 0:01:14.5]} 22. Bxc5 {[%clk 0:01:59.5]}
1-0

[Event "Early-Titled-Tuesday-Blitz-February-13-2024"]
[Site "Chess.com"]
[Date "2024.02.13"]
[Round "2"]
[White "Oleksandr_Bortnyk"]
[Black "Kildepiotr"]
[Result "1-0"]
[WhiteElo "3072"]
[BlackElo "2686"]
[TimeControl "180+1"]
[EndTime "8:16:30 PST"]
[Termination "Oleksandr_Bortnyk won by resignation"]

1. e4 {[%clk 0:03:00.9]} 1... e6 {[%clk 0:02:59.1]} 2. d4 {[%clk 0:02:59.1]}
2... d5 {[%clk 0:02:59.4]} 3. Nc3 {[%clk 0:02:58.9]} 3... Bb4 {[%clk 0:02:58.8]}
4. Qd3 {[%clk 0:02:58.3]} 4... dxe4 {[%clk 0:02:56.9]} 5. Qxe4 {[%clk
0:02:59.2]} 5... Nf6 {[%clk 0:02:56.9]} 6. Qh4 {[%clk 0:02:58.5]} 6... c5 {[%clk
0:02:52.7]} 7. dxc5 {[%clk 0:02:54.4]} 7... Nc6 {[%clk 0:02:48.9]} 8. Bd2 {[%clk
0:02:50.7]} 8... Bxc5 {[%clk 0:02:42.8]} 9. Nf3 {[%clk 0:02:42.4]} 9... a6
{[%clk 0:02:32.4]} 10. a3 {[%clk 0:02:40.4]} 10... b5 {[%clk 0:02:31.4]} 11. Bd3
{[%clk 0:02:39.7]} 11... Bb7 {[%clk 0:02:31]} 12. O-O {[%clk 0:02:38]} 12... Nd4
{[%clk 0:02:24.3]} 13. Nxd4 {[%clk 0:02:27.6]} 13... Qxd4 {[%clk 0:02:25.2]} 14.
Qg5 {[%clk 0:02:15.9]} 14... Qg4 {[%clk 0:02:22.9]} 15. h3 {[%clk 0:02:04.8]}
15... Qxg5 {[%clk 0:02:22.8]} 16. Bxg5 {[%clk 0:02:05.7]} 16... Ke7 {[%clk
0:02:10.7]} 17. Rfe1 {[%clk 0:02:05.1]} 17... h6 {[%clk 0:02:10.4]} 18. Bxf6+
{[%clk 0:01:57.5]} 18... Kxf6 {[%clk 0:02:08.9]} 19. Be4 {[%clk 0:01:58.4]}
19... Bd5 {[%clk 0:01:43.8]} 20. Bxd5 {[%clk 0:01:56.5]} 20... exd5 {[%clk
0:01:44]} 21. Nxd5+ {[%clk 0:01:56.7]} 21... Kf5 {[%clk 0:01:40.2]} 22. b4
{[%clk 0:01:46]} 22... Rad8 {[%clk 0:01:26]} 23. g4+ {[%clk 0:01:40.3]} 23...
Kg5 {[%clk 0:01:26.1]} 24. Re5+ {[%clk 0:01:39.2]} 1-0

[Event "Early-Titled-Tuesday-Blitz-February-13-2024"]
[Site "Chess.com"]
[Date "2024.02.13"]
[Round "2"]
[White "Leebit02"]
[Black "bascheyaro"]
[Result "0-1"]
[WhiteElo "2556"]
[BlackElo "2788"]
[TimeControl "180+1"]
[EndTime "8:16:38 PST"]
[Termination "bascheyaro won by resignation"]

1. d4 {[%clk 0:02:59.9]} 1... d5 {[%clk 0:02:58.8]} 2. c4 {[%clk 0:02:58.6]}
2... c6 {[%clk 0:02:58.8]} 3. Nf3 {[%clk 0:02:57.3]} 3... Nf6 {[%clk 0:02:57.2]}
4. e3 {[%clk 0:02:54.6]} 4... Bf5 {[%clk 0:02:56.6]} 5. Nc3 {[%clk 0:02:53.8]}
5... e6 {[%clk 0:02:56.5]} 6. Nh4 {[%clk 0:02:51.7]} 6... Be4 {[%clk 0:02:56.9]}
7. f3 {[%clk 0:02:49.5]} 7... Bg6 {[%clk 0:02:57.2]} 8. Qb3 {[%clk 0:02:40.9]}
8... Qb6 {[%clk 0:02:57]} 9. Bd2 {[%clk 0:02:28.3]} 9... Qxb3 {[%clk 0:02:56.1]}
10. axb3 {[%clk 0:02:28.6]} 10... Bc2 {[%clk 0:02:56.4]} 11. Na4 {[%clk
0:02:09.1]} 11... Nbd7 {[%clk 0:02:52.6]} 12. cxd5 {[%clk 0:01:42.4]} 12... g5
{[%clk 0:02:51.5]} 13. dxe6 {[%clk 0:01:28.4]} 13... fxe6 {[%clk 0:02:51.3]} 14.
Bc4 {[%clk 0:01:27.3]} 14... gxh4 {[%clk 0:02:37.3]} 15. Bxe6 {[%clk 0:01:27.4]}
15... Ke7 {[%clk 0:02:37.8]} 16. Bh3 {[%clk 0:01:12.5]} 16... Bxb3 {[%clk
0:02:36.5]} 17. e4 {[%clk 0:01:11.4]} 17... Be6 {[%clk 0:02:27.8]} 18. Bg5
{[%clk 0:00:58.6]} 18... Bxh3 {[%clk 0:02:27.1]} 19. gxh3 {[%clk 0:00:57.9]}
19... Ke6 {[%clk 0:02:20]} 20. Bxh4 {[%clk 0:00:57.6]} 20... Rg8 {[%clk
0:02:17.9]} 21. Kf2 {[%clk 0:00:56]} 21... Be7 {[%clk 0:02:14]} 22. Rad1 {[%clk
0:00:44]} 22... Nxe4+ {[%clk 0:02:12.3]} 0-1

[Event "Early-Titled-Tuesday-Blitz-February-13-2024"]
[Site "Chess.com"]
[Date "2024.02.13"]
[Round "2"]
[White "KhazhatulyAlikhan"]
[Black "BursaBBSatranc"]
[Result "1-0"]
[WhiteElo "2426"]
[BlackElo "2696"]
[TimeControl "180+1"]
[EndTime "8:16:38 PST"]
[Termination "KhazhatulyAlikhan won by resignation"]

1. e4 {[%clk 0:03:00.9]} 1... e5 {[%clk 0:02:58]} 2. Nf3 {[%clk 0:03:00.5]} 2...
Nf6 {[%clk 0:02:58]} 3. Nc3 {[%clk 0:03:00.6]} 3... Nc6 {[%clk 0:02:58]} 4. Bb5
{[%clk 0:03:01]} 4... Nd4 {[%clk 0:02:53]} 5. Bc4 {[%clk 0:02:55.3]} 5... Bc5
{[%clk 0:02:51]} 6. O-O {[%clk 0:02:52.9]} 6... d6 {[%clk 0:02:40.9]} 7. Nxd4
{[%clk 0:02:45.8]} 7... Bxd4 {[%clk 0:02:41.2]} 8. d3 {[%clk 0:02:45.5]} 8...
O-O {[%clk 0:02:38.3]} 9. Bg5 {[%clk 0:02:44.9]} 9... h6 {[%clk 0:02:38.4]} 10.
Bxf6 {[%clk 0:02:38.4]} 10... Qxf6 {[%clk 0:02:39.3]} 11. Nd5 {[%clk 0:02:38.5]}
11... Qd8 {[%clk 0:02:39.9]} 12. c3 {[%clk 0:02:38.7]} 12... Bb6 {[%clk
0:02:37.9]} 13. Nxb6 {[%clk 0:02:36.3]} 13... axb6 {[%clk 0:02:37.8]} 14. f4
{[%clk 0:02:36.2]} 14... exf4 {[%clk 0:02:10.8]} 15. Rxf4 {[%clk 0:02:37.1]}
15... Be6 {[%clk 0:02:07.4]} 16. Qb3 {[%clk 0:02:36.1]} 16... Qe7 {[%clk
0:02:02.1]} 17. Raf1 {[%clk 0:02:33.3]} 17... Rfe8 {[%clk 0:01:24.8]} 18. Rxf7
{[%clk 0:02:17]} 18... Bxc4 {[%clk 0:00:45.6]} 19. Qxc4 {[%clk 0:02:15.3]} 19...
Qe6 {[%clk 0:00:43.7]} 20. Rf8+ {[%clk 0:02:15.6]} 1-0

[Event "Early-Titled-Tuesday-Blitz-February-13-2024"]
[Site "Chess.com"]
[Date "2024.02.13"]
[Round "2"]
[White "Shield12"]
[Black "Titus369"]
[Result "1-0"]
[WhiteElo "3003"]
[BlackElo "2658"]
[TimeControl "180+1"]
[EndTime "8:16:43 PST"]
[Termination "Shield12 won by resignation"]

1. e4 {[%clk 0:03:00.9]} 1... c5 {[%clk 0:02:50.8]} 2. Nf3 {[%clk 0:03:00.6]}
2... d6 {[%clk 0:02:49.7]} 3. d4 {[%clk 0:03:00.7]} 3... cxd4 {[%clk 0:02:50.6]}
4. Nxd4 {[%clk 0:03:01.6]} 4... Nf6 {[%clk 0:02:48.7]} 5. Nc3 {[%clk 0:03:02.5]}
5... a6 {[%clk 0:02:47.7]} 6. a4 {[%clk 0:03:02.6]} 6... e6 {[%clk 0:02:47.5]}
7. Be2 {[%clk 0:02:59.6]} 7... Nbd7 {[%clk 0:02:44.3]} 8. O-O {[%clk 0:02:58.7]}
8... b6 {[%clk 0:02:44.4]} 9. f4 {[%clk 0:02:56.6]} 9... Bb7 {[%clk 0:02:44.7]}
10. Bf3 {[%clk 0:02:56.6]} 10... Qc7 {[%clk 0:02:42.4]} 11. Qe2 {[%clk
0:02:49.8]} 11... Be7 {[%clk 0:02:33.7]} 12. Bd2 {[%clk 0:02:48.8]} 12... Rc8
{[%clk 0:02:33.3]} 13. Rae1 {[%clk 0:02:47.8]} 13... Qb8 {[%clk 0:02:32.8]} 14.
e5 {[%clk 0:02:44.9]} 14... dxe5 {[%clk 0:02:25.5]} 15. fxe5 {[%clk 0:02:45.8]}
15... Bc5 {[%clk 0:02:21.4]} 16. Qf2 {[%clk 0:02:36.8]} 16... Bxf3 {[%clk
0:01:33.9]} 17. exf6 {[%clk 0:02:34.7]} 17... Bh5 {[%clk 0:01:25.6]} 18. fxg7
{[%clk 0:02:28.9]} 18... Rg8 {[%clk 0:01:25.5]} 19. b4 {[%clk 0:02:13.9]} 19...
Bxd4 {[%clk 0:01:20.7]} 20. Qxd4 {[%clk 0:02:14.8]} 20... Qc7 {[%clk 0:01:08.3]}
21. Ne4 {[%clk 0:02:11.7]} 1-0

[Event "Early-Titled-Tuesday-Blitz-February-13-2024"]
[Site "Chess.com"]
[Date "2024.02.13"]
[Round "2"]
[White "Sanyura"]
[Black "kylelancman"]
[Result "0-1"]
[WhiteElo "2648"]
[BlackElo "2426"]
[TimeControl "180+1"]
[EndTime "8:16:44 PST"]
[Termination "kylelancman won by resignation"]

1. Nf3 {[%clk 0:03:00.9]} 1... c5 {[%clk 0:02:55]} 2. g3 {[%clk 0:03:01.1]} 2...
Nc6 {[%clk 0:02:53.1]} 3. Bg2 {[%clk 0:03:01.5]} 3... e5 {[%clk 0:02:52.6]} 4.
d3 {[%clk 0:03:01.1]} 4... g6 {[%clk 0:02:48.8]} 5. O-O {[%clk 0:03:01.6]} 5...
Bg7 {[%clk 0:02:49.3]} 6. e4 {[%clk 0:03:02]} 6... Nge7 {[%clk 0:02:49.8]} 7.
Nbd2 {[%clk 0:03:02.4]} 7... O-O {[%clk 0:02:50.2]} 8. Nh4 {[%clk 0:03:00.6]}
8... d5 {[%clk 0:02:43.8]} 9. exd5 {[%clk 0:03:00.6]} 9... Nxd5 {[%clk
0:02:43.6]} 10. Nc4 {[%clk 0:02:58.5]} 10... Be6 {[%clk 0:02:41.8]} 11. a4
{[%clk 0:02:58.2]} 11... Rc8 {[%clk 0:02:39.5]} 12. c3 {[%clk 0:02:58.2]} 12...
Qd7 {[%clk 0:02:38.5]} 13. Re1 {[%clk 0:02:57.1]} 13... Rfd8 {[%clk 0:02:32.7]}
14. a5 {[%clk 0:02:56.2]} 14... Nc7 {[%clk 0:02:30]} 15. Qa4 {[%clk 0:02:41.9]}
15... Qxd3 {[%clk 0:02:20.9]} 16. Ne3 {[%clk 0:02:36.6]} 16... Qb5 {[%clk
0:02:13.7]} 17. Nf3 {[%clk 0:02:23.2]} 17... Qxa4 {[%clk 0:02:09.4]} 18. Rxa4
{[%clk 0:02:22.7]} 18... Nd5 {[%clk 0:02:07.9]} 19. Ng5 {[%clk 0:02:21.5]} 19...
Nxe3 {[%clk 0:02:05]} 20. Nxe6 {[%clk 0:02:21.7]} 20... Nxg2 {[%clk 0:01:54.7]}
21. Nxd8 {[%clk 0:02:02.5]} 21... Nxe1 {[%clk 0:01:52.1]} 22. Nxb7 {[%clk
0:01:35.5]} 22... Nd3 {[%clk 0:01:47.2]} 23. Be3 {[%clk 0:01:35]} 23... Nxb2
{[%clk 0:01:39.2]} 24. Ra2 {[%clk 0:01:34.5]} 24... Nc4 {[%clk 0:01:36.2]} 25.
Bxc5 {[%clk 0:01:34.6]} 25... N6xa5 {[%clk 0:01:32.1]} 0-1

[Event "Early-Titled-Tuesday-Blitz-February-13-2024"]
[Site "Chess.com"]
[Date "2024.02.13"]
[Round "2"]
[White "Jospem"]
[Black "Korona_91"]
[Result "1-0"]
[WhiteElo "3051"]
[BlackElo "2674"]
[TimeControl "180+1"]
[EndTime "8:16:49 PST"]
[Termination "Jospem won by resignation"]

1. e4 {[%clk 0:03:00.9]} 1... e6 {[%clk 0:02:58.2]} 2. d4 {[%clk 0:03:01]} 2...
d5 {[%clk 0:02:58.9]} 3. exd5 {[%clk 0:03:01.9]} 3... exd5 {[%clk 0:02:58.6]} 4.
Nf3 {[%clk 0:03:02.8]} 4... Nf6 {[%clk 0:02:58.9]} 5. h3 {[%clk 0:03:02.7]} 5...
Bd6 {[%clk 0:02:59.2]} 6. Bd3 {[%clk 0:03:03.4]} 6... O-O {[%clk 0:02:58.1]} 7.
O-O {[%clk 0:03:04.1]} 7... h6 {[%clk 0:02:58.7]} 8. Nc3 {[%clk 0:03:02.1]} 8...
c6 {[%clk 0:02:57.4]} 9. Re1 {[%clk 0:03:02.1]} 9... Nbd7 {[%clk 0:02:55]} 10.
Be3 {[%clk 0:03:01.8]} 10... Re8 {[%clk 0:02:55.3]} 11. Qd2 {[%clk 0:03:02.1]}
11... Nf8 {[%clk 0:02:52.3]} 12. Bf4 {[%clk 0:03:02.2]} 12... Qc7 {[%clk
0:02:48.5]} 13. Bxd6 {[%clk 0:03:00]} 13... Qxd6 {[%clk 0:02:49.4]} 14. Rxe8
{[%clk 0:02:59.7]} 14... Nxe8 {[%clk 0:02:49.7]} 15. Re1 {[%clk 0:02:59.7]}
15... Be6 {[%clk 0:02:49.8]} 16. Ne2 {[%clk 0:02:59.6]} 16... Nf6 {[%clk
0:02:48.1]} 17. Ng3 {[%clk 0:02:57.4]} 17... Re8 {[%clk 0:02:46.8]} 18. Qa5
{[%clk 0:02:55.8]} 18... a6 {[%clk 0:02:36.8]} 19. Ne5 {[%clk 0:02:55.7]} 19...
Bc8 {[%clk 0:02:29.7]} 20. Qd2 {[%clk 0:02:49.5]} 20... c5 {[%clk 0:02:24.5]}
21. c3 {[%clk 0:02:48.4]} 21... cxd4 {[%clk 0:02:23.1]} 22. cxd4 {[%clk
0:02:49.3]} 22... Ne6 {[%clk 0:02:21.8]} 23. Nf5 {[%clk 0:02:34.8]} 23... Qc7
{[%clk 0:02:17.4]} 24. Nxh6+ {[%clk 0:02:25.3]} 24... gxh6 {[%clk 0:02:16.7]}
25. Qxh6 {[%clk 0:02:26.2]} 25... Ne4 {[%clk 0:02:09.3]} 26. Bxe4 {[%clk
0:02:04.3]} 26... dxe4 {[%clk 0:02:08]} 27. Rxe4 {[%clk 0:02:01.6]} 27... Nxd4
{[%clk 0:01:12.2]} 28. Qg5+ {[%clk 0:02:01]} 28... Kf8 {[%clk 0:01:11.8]} 29.
Ng6+ {[%clk 0:02:01.6]} 29... fxg6 {[%clk 0:00:58.7]} 30. Qf6+ {[%clk
0:02:01.7]} 1-0

[Event "Early-Titled-Tuesday-Blitz-February-13-2024"]
[Site "Chess.com"]
[Date "2024.02.13"]
[Round "2"]
[White "krasavetc"]
[Black "AryanTari"]
[Result "0-1"]
[WhiteElo "2628"]
[BlackElo "2925"]
[TimeControl "180+1"]
[EndTime "8:16:49 PST"]
[Termination "AryanTari won by resignation"]

1. e4 {[%clk 0:03:00.9]} 1... c6 {[%clk 0:02:47.5]} 2. d4 {[%clk 0:02:57.7]}
2... d5 {[%clk 0:02:48.4]} 3. exd5 {[%clk 0:02:58.6]} 3... cxd5 {[%clk
0:02:47.6]} 4. Bd3 {[%clk 0:02:59.3]} 4... Nf6 {[%clk 0:02:46.4]} 5. h3 {[%clk
0:02:59.2]} 5... Nc6 {[%clk 0:02:39.6]} 6. c3 {[%clk 0:02:59.2]} 6... g6 {[%clk
0:02:40]} 7. Nf3 {[%clk 0:02:59.1]} 7... Bf5 {[%clk 0:02:39.2]} 8. Be2 {[%clk
0:02:59.3]} 8... e6 {[%clk 0:02:38.1]} 9. O-O {[%clk 0:02:54.4]} 9... Bd6 {[%clk
0:02:36.7]} 10. Re1 {[%clk 0:02:50.8]} 10... h5 {[%clk 0:02:35.2]} 11. Bg5
{[%clk 0:02:49.7]} 11... Be7 {[%clk 0:02:27.3]} 12. Bb5 {[%clk 0:02:43.9]} 12...
Nd7 {[%clk 0:02:17.5]} 13. Bxe7 {[%clk 0:02:38.4]} 13... Qxe7 {[%clk 0:02:18.4]}
14. Nbd2 {[%clk 0:02:36.1]} 14... g5 {[%clk 0:02:16.2]} 15. Ne5 {[%clk
0:01:46.1]} 15... Ndxe5 {[%clk 0:02:09]} 16. Rxe5 {[%clk 0:01:45.7]} 16... Kf8
{[%clk 0:02:06.7]} 17. Bxc6 {[%clk 0:01:43.2]} 17... bxc6 {[%clk 0:02:07.6]} 18.
Qe2 {[%clk 0:01:39.9]} 18... g4 {[%clk 0:02:05.2]} 19. Re1 {[%clk 0:01:34.1]}
19... Qf6 {[%clk 0:01:48.6]} 20. hxg4 {[%clk 0:01:02.8]} 20... hxg4 {[%clk
0:01:48.1]} 21. Nf1 {[%clk 0:01:03.4]} 21... Qh4 {[%clk 0:01:41.8]} 22. Ng3
{[%clk 0:01:03.5]} 22... Qh2+ {[%clk 0:01:41.9]} 23. Kf1 {[%clk 0:01:04]} 23...
Qh1+ {[%clk 0:01:42.5]} 0-1